bitfinex/quotes_BTCUSD_20250623
["timestamp","ask_amount","ask_price","bid_price","bid_amount"]
[1750656098421,0.28776476,101720.0,101710.0,0.0647]
[1750656098632,0.01845673,101720.0,101710.0,0.06591]
[1750656099252,0.01845673,101720.0,101710.0,0.35367476]
[1750656099675,0.01845643,101720.0,101710.0,0.35367476]
[1750656099888,0.01845643,101720.0,101710.0,0.35567476]
[1750656100957,0.01845643,101720.0,101710.0,0.35767476]
[1750656101811,0.03954505,101720.0,101710.0,0.0687]
[1750656102025,0.03954505,101720.0,101710.0,0.004]
[1750656102026,0.62347683,101720.0,101710.0,0.004]
[1750656102250,0.33571207,101720.0,101710.0,0.004]
[1750656102684,0.33511115,101720.0,101710.0,0.004]
[1750656102910,0.33511386,101720.0,101710.0,0.004]
[1750656103099,0.34494428,101720.0,101710.0,0.004]
[1750656103669,0.34494428,101720.0,101700.0,0.35187476]
[1750656103872,0.19988,101710.0,101700.0,0.35187476]
[1750656104072,0.20910958,101710.0,101700.0,0.35187476]
[1750656104682,0.20910958,101710.0,101700.0,0.06411]
[1750656104901,0.20910958,101710.0,101700.0,0.35187476]
[1750656105116,0.20910958,101710.0,101700.0,0.35304476]
[1750656105539,0.20910958,101710.0,101700.0,0.35704476]
[1750656107627,0.20910958,101710.0,101700.0,0.64480952]
[1750656108532,0.20910691,101710.0,101700.0,0.64480952]
[1750656108719,0.20910691,101710.0,101700.0,0.35704476]
[1750656109340,0.05038691,101710.0,101700.0,0.35704476]
[1750656111256,0.05038644,101710.0,101700.0,0.35704476]
[1750656111747,0.05038644,101710.0,101700.0,0.06928]
[1750656111912,0.05038644,101710.0,101700.0,0.35704476]
[1750656112739,0.06164493,101710.0,101700.0,0.35704476]
[1750656112942,0.05038644,101710.0,101700.0,0.35704476]
[1750656114608,0.05038644,101710.0,101700.0,0.35795476]
[1750656114942,0.05038644,101710.0,101700.0,0.07019]
[1750656115154,0.05038644,101710.0,101700.0,0.35795476]
[1750656116770,0.04116,101710.0,101700.0,0.35795476]
[1750656118182,0.32708566,101720.0,101700.0,0.35795476]
[1750656118395,0.04116,101710.0,101700.0,0.35795476]
[1750656118543,0.33875595,101710.0,101700.0,0.00582]
[1750656118784,0.05960812,101710.0,101700.0,0.03782]
[1750656119003,0.06943912,101710.0,101700.0,0.35655476]
[1750656119213,0.07927031,101710.0,101700.0,0.35655476]
[1750656119469,0.23803022,101710.0,101700.0,0.35655476]
[1750656120072,0.52579498,101710.0,101700.0,0.06879]
[1750656120245,0.55529029,101710.0,101700.0,0.06879]
[1750656120517,0.33570713,101710.0,101700.0,0.07079]
[1750656120780,0.33570713,101710.0,101700.0,0.35855476]
[1750656120781,0.25769376,101710.0,101700.0,0.35855476]
[1750656121037,0.25769385,101710.0,101700.0,0.07079]
[1750656121306,0.5552901,101710.0,101700.0,0.07079]
[1750656121527,0.05960908,101710.0,101700.0,0.35855476]
[1750656121741,0.06944008,101710.0,101700.0,0.35855476]
[1750656122409,0.05960908,101710.0,101700.0,0.35855476]
[1750656122640,0.05959547,101710.0,101700.0,0.40232437]
[1750656122846,0.04116,101710.0,101700.0,0.40232437]
[1750656123458,0.04116,101710.0,101700.0,0.35855476]
[1750656124094,0.050991,101710.0,101700.0,0.35795476]
[1750656124305,0.06082219,101710.0,101700.0,0.35795476]
[1750656124507,0.37685501,101710.0,101700.0,0.07019]
[1750656124707,0.37685492,101710.0,101700.0,0.07019]
[1750656125569,0.37685541,101710.0,101700.0,0.07019]
[1750656125938,0.36702388,101710.0,101700.0,0.07019]
[1750656126197,0.34858695,101710.0,101700.0,0.07019]
[1750656126413,0.050991,101710.0,101700.0,0.07019]
[1750656126938,0.06082219,101710.0,101700.0,0.07019]
[1750656127742,0.050991,101710.0,101700.0,0.07019]
[1750656128375,0.050991,101710.0,101700.0,0.35795476]
[1750656128713,0.06021143,101710.0,101700.0,0.35795476]
[1750656129368,0.07004262,101710.0,101700.0,0.00582]
[1750656129567,0.37624826,101710.0,101700.0,0.07022]
[1750656129768,0.38607955,101710.0,101700.0,0.07022]
[1750656129976,0.37624854,101710.0,101700.0,0.07139]
[1750656130992,0.37624845,101710.0,101700.0,0.07139]
[1750656131475,0.37625023,101710.0,101700.0,0.07139]
[1750656131875,0.38608152,101710.0,101700.0,0.07139]
[1750656132060,0.38608142,101710.0,101700.0,0.07139]
[1750656132898,0.07865437,101710.0,101700.0,0.07139]
[1750656133466,0.06882337,101710.0,101700.0,0.35915476]
[1750656134151,0.07865437,101710.0,101700.0,0.35915476]
[1750656134382,0.06882838,101710.0,101700.0,0.07139]
[1750656134586,0.06882838,101710.0,101700.0,0.35915476]
[1750656134811,0.05038279,101710.0,101700.0,0.10730548]
[1750656135025,0.05038279,101710.0,101700.0,0.64691952]
[1750656136252,0.04116,101710.0,101700.0,0.64691952]
[1750656136668,0.04116,101710.0,101700.0,0.80567952]
[1750656137115,0.2364,101720.0,101710.0,0.0612]
[1750656137287,0.28677841,101720.0,101710.0,0.35016476]
[1750656139681,0.28677841,101720.0,101710.0,0.43001571]
[1750656140289,0.28677637,101720.0,101710.0,0.43001571]
[1750656140912,0.27756,101720.0,101710.0,0.43001571]
[1750656141092,0.28677637,101720.0,101710.0,0.43001571]
[1750656142417,0.28677637,101720.0,101710.0,0.0624]
[1750656142540,0.28677637,101720.0,101710.0,0.35016476]
[1750656143672,0.28677134,101720.0,101710.0,0.35016476]
[1750656143878,0.05037134,101720.0,101710.0,0.35016476]
[1750656144313,0.05037134,101720.0,101710.0,0.35107476]
[1750656146161,0.04116,101720.0,101710.0,0.35107476]
[1750656147252,0.05036719,101720.0,101710.0,0.35107476]
[1750656147927,0.05036566,101720.0,101710.0,0.35107476]
[1750656149125,0.37950304,101730.0,101710.0,0.35107476]
[1750656149361,0.00934344,101730.0,101720.0,0.64112952]
[1750656149564,0.05050344,101730.0,101720.0,0.64112952]
[1750656150317,0.05150344,101730.0,101720.0,0.64112952]
[1750656150567,0.05150344,101730.0,101720.0,0.70533347]
[1750656150777,0.05050344,101730.0,101720.0,0.70533347]
[1750656150954,0.05050344,101730.0,101720.0,0.12980395]
[1750656151253,0.05350344,101730.0,101720.0,0.64112952]
[1750656151484,0.05050344,101730.0,101720.0,0.64112952]
[1750656151851,0.05050344,101730.0,101720.0,0.64312952]
[1750656152171,0.00934344,101730.0,101720.0,0.64312952]
[1750656152311,0.05050344,101730.0,101720.0,0.35536476]
[1750656152513,0.05050344,101730.0,101720.0,0.35736476]
[1750656154139,0.00934344,101730.0,101720.0,0.35736476]
[1750656154343,0.05050344,101730.0,101720.0,0.35736476]
[1750656155643,0.05050344,101730.0,101720.0,0.0696]
[1750656155831,0.05050344,101730.0,101720.0,0.35736476]
[1750656156038,0.05050344,101730.0,101720.0,0.0696]
[1750656156251,0.05050344,101730.0,101720.0,0.35736476]
[1750656158334,0.05050413,101730.0,101720.0,0.35736476]
[1750656159739,0.05050413,101730.0,101720.0,0.0696]
[1750656160156,0.05050413,101730.0,101720.0,0.35736476]
[1750656160369,0.0412983,101730.0,101720.0,0.35736476]
[1750656160580,0.05050844,101730.0,101720.0,0.35736476]
[1750656161019,0.0412983,101730.0,101720.0,0.35736476]
[1750656161226,0.05050897,101730.0,101720.0,0.35736476]
[1750656161643,0.05050897,101730.0,101720.0,0.0696]
[1750656161854,0.05050897,101730.0,101720.0,0.35736476]
[1750656163521,0.0689486,101730.0,101720.0,0.35736476]
[1750656163952,0.06895774,101730.0,101720.0,0.35736476]
[1750656164982,0.06895774,101730.0,101720.0,0.0696]
[1750656165196,0.06895774,101730.0,101720.0,0.35736476]
[1750656166773,0.0412983,101730.0,101720.0,0.35736476]
[1750656166972,0.06896416,101730.0,101720.0,0.35736476]
[1750656167185,0.06896422,101730.0,101720.0,0.35736476]
[1750656168975,0.06896535,101730.0,101720.0,0.35736476]
[1750656169166,0.06896535,101730.0,101720.0,0.0696]
[1750656169367,0.06896535,101730.0,101720.0,0.35736476]
[1750656169821,0.06897789,101730.0,101720.0,0.35736476]
[1750656172739,0.06897843,101730.0,101720.0,0.35736476]
[1750656173619,0.06897843,101730.0,101720.0,0.0696]
[1750656173821,0.06897843,101730.0,101720.0,0.35736476]
[1750656174469,0.04116,101730.0,101720.0,0.35827476]
[1750656181452,0.38998859,101740.0,101730.0,0.0648]
[1750656181685,0.71891325,101740.0,101730.0,0.06602]
[1750656181945,0.42132039,101740.0,101730.0,0.35378476]
[1750656183245,0.42132039,101740.0,101730.0,0.06602]
[1750656183479,0.42132039,101740.0,101730.0,0.35478476]
[1750656185231,0.42020039,101740.0,101730.0,0.35478476]
[1750656186294,0.44788398,101740.0,101730.0,0.35478476]
[1750656189192,0.40884359,101740.0,101730.0,0.35478476]
[1750656189793,0.40883651,101740.0,101730.0,0.35478476]
[1750656190423,0.40883651,101740.0,101730.0,0.41713212]
[1750656191703,0.39961101,101740.0,101730.0,0.41713212]
[1750656192555,0.04116,101740.0,101730.0,0.9427582]
[1750656192774,0.04116,101750.0,101740.0,0.031]
[1750656192984,0.04116,101750.0,101740.0,0.31997476]
[1750656193226,0.04116,101750.0,101740.0,0.03221]
[1750656193478,0.04116,101750.0,101740.0,0.31997476]
[1750656193479,0.38116,101750.0,101740.0,0.31997476]
[1750656193677,0.38116,101750.0,101740.0,0.35207476]
[1750656193893,0.38216,101750.0,101740.0,0.35207476]
[1750656194716,0.42552392,101750.0,101740.0,0.35207476]
[1750656196004,0.38436392,101750.0,101740.0,0.35207476]
[1750656196275,0.42552392,101750.0,101740.0,0.35207476]
[1750656198453,0.42552392,101750.0,101740.0,0.06431]
[1750656198660,0.42552392,101750.0,101740.0,0.35207476]
[1750656202631,0.42552392,101750.0,101740.0,0.06431]
[1750656202632,0.08552392,101750.0,101740.0,0.06431]
[1750656202857,0.08552392,101750.0,101740.0,0.35207476]
[1750656203753,0.08552392,101750.0,101740.0,0.06431]
[1750656203927,0.08552392,101750.0,101740.0,0.35207476]
[1750656204516,0.08552392,101750.0,101740.0,0.35298476]
[1750656205973,0.09473513,101750.0,101740.0,0.35298476]
[1750656207164,0.35259838,101750.0,101740.0,0.06401]
[1750656207411,0.41083001,101750.0,101740.0,0.06401]
[1750656207620,0.75083001,101750.0,101740.0,0.03301]
[1750656207846,0.77048516,101750.0,101740.0,0.00091]
[1750656208258,0.78031297,101750.0,101740.0,0.00091]
[1750656208461,0.77048506,101750.0,101740.0,0.00091]
[1750656209442,0.75083001,101750.0,101740.0,0.00091]
[1750656209641,0.75083001,101750.0,101740.0,0.06241]
[1750656209642,0.75083757,101750.0,101740.0,0.06241]
[1750656209914,0.760665,101750.0,101740.0,0.06241]
[1750656210573,0.77049262,101750.0,101740.0,0.06241]
[1750656210753,0.760665,101750.0,101740.0,0.06241]
[1750656210902,0.77049252,101750.0,101740.0,0.06241]
[1750656211312,0.760665,101750.0,101740.0,0.06241]
[1750656212724,0.76066941,101750.0,101740.0,0.06241]
[1750656213127,0.75084198,101750.0,101740.0,0.06241]
[1750656213326,0.75084388,101750.0,101740.0,0.06241]
[1750656213536,0.75084378,101750.0,101740.0,0.06241]
[1750656215545,0.75084622,101750.0,101740.0,0.06241]
[1750656216408,0.74101899,101750.0,101740.0,0.06241]
[1750656216565,0.75084622,101750.0,101740.0,0.06241]
[1750656216947,0.46308146,101750.0,101740.0,0.06241]
[1750656217149,0.74101899,101750.0,101740.0,0.06241]
[1750656217789,0.74101899,101750.0,101740.0,0.06362]
[1750656218390,0.73180506,101750.0,101740.0,0.06362]
[1750656218596,0.73602325,101750.0,101740.0,0.06362]
[1750656219015,0.42982211,101750.0,101740.0,0.06362]
[1750656219223,0.44826112,101750.0,101740.0,0.06362]
[1750656219867,0.44826112,101750.0,101740.0,0.35138476]
[1750656220517,0.73602588,101750.0,101740.0,0.06362]
[1750656220946,0.60694112,101750.0,101740.0,0.35138476]
[1750656221353,0.40702112,101750.0,101740.0,0.35138476]
[1750656221591,0.44826851,101750.0,101740.0,0.35138476]
[1750656222847,0.44826851,101750.0,101740.0,0.35238476]
[1750656224288,0.44826851,101750.0,101740.0,0.35338476]
[1750656225386,0.10826851,101750.0,101740.0,0.35338476]
[1750656227326,0.10827011,101750.0,101740.0,0.35338476]
[1750656227978,0.10827254,101750.0,101740.0,0.35338476]
[1750656230152,0.09904825,101750.0,101740.0,0.35338476]
[1750656230376,0.10827041,101750.0,101740.0,0.35338476]
[1750656232994,0.10826856,101750.0,101740.0,0.06562]
[1750656233196,0.10826856,101750.0,101740.0,0.35338476]
[1750656234022,0.10826772,101750.0,101740.0,0.35338476]
[1750656234438,0.10826772,101750.0,101740.0,0.35429476]
[1750656234637,0.08982608,101750.0,101740.0,0.35429476]
[1750656236036,0.08982324,101750.0,101740.0,0.35429476]
[1750656237449,0.08060392,101750.0,101740.0,0.35429476]
[1750656241911,0.04124,101750.0,101740.0,0.35429476]
[1750656242331,0.04124,101750.0,101740.0,0.38972424]
[1750656243013,0.08092681,101750.0,101740.0,0.38972424]
[1750656243214,0.34,101760.0,101740.0,0.677489]
[1750656243422,0.35844264,101760.0,101750.0,0.35060476]
[1750656243627,0.39956264,101760.0,101750.0,0.06284]
[1750656243834,0.39956264,101760.0,101750.0,0.35060476]
[1750656244247,0.39956264,101760.0,101750.0,0.06284]
[1750656244457,0.40056264,101760.0,101750.0,0.06284]
[1750656244860,0.39956264,101760.0,101750.0,0.06284]
[1750656245338,0.40056264,101760.0,101750.0,0.07447077]
[1750656245532,0.40056264,101760.0,101750.0,0.35060476]
[1750656247437,0.42290984,101760.0,101750.0,0.35060476]
[1750656248065,0.45057197,101760.0,101750.0,0.35060476]
[1750656248457,0.45057197,101760.0,101750.0,0.06284]
[1750656248670,0.45057197,101760.0,101750.0,0.35060476]
[1750656249326,0.45057197,101760.0,101750.0,0.06284]
[1750656249452,0.45057197,101760.0,101750.0,0.35060476]
[1750656251914,0.4505724,101760.0,101750.0,0.35060476]
[1750656252117,0.4489324,101760.0,101750.0,0.35060476]
[1750656253133,0.44893176,101760.0,101750.0,0.35060476]
[1750656253544,0.11057176,101760.0,101750.0,0.43061183]
[1750656253714,0.11057176,101760.0,101750.0,0.14284707]
[1750656253945,0.11057176,101760.0,101750.0,0.43061183]
[1750656254623,0.09213081,101760.0,101750.0,0.35060476]
[1750656254835,0.11057278,101760.0,101750.0,0.35060476]
[1750656255268,0.11057278,101760.0,101750.0,0.06284]
[1750656255546,0.11057278,101760.0,101750.0,0.35060476]
[1750656255974,0.11057292,101760.0,101750.0,0.35060476]
[1750656258266,0.11057292,101760.0,101750.0,0.06284]
[1750656258470,0.11057292,101760.0,101750.0,0.35060476]
[1750656258871,0.11057101,101760.0,101750.0,0.06284]
[1750656259071,0.11057101,101760.0,101750.0,0.35060476]
[1750656260154,0.09213023,101760.0,101750.0,0.35060476]
[1750656260325,0.09213023,101760.0,101750.0,0.06284]
[1750656260539,0.39833347,101760.0,101750.0,0.06284]
[1750656261395,0.39833232,101760.0,101750.0,0.06284]
[1750656261819,0.37989384,101760.0,101750.0,0.06284]
[1750656262026,0.39833232,101760.0,101750.0,0.06284]
[1750656262220,0.11056756,101760.0,101750.0,0.06284]
[1750656262428,0.39833232,101760.0,101750.0,0.06284]
[1750656264186,0.39833192,101760.0,101750.0,0.06375]
[1750656264398,0.23908008,101760.0,101750.0,0.06284]
[1750656264640,0.05033884,101760.0,101750.0,0.06375]
[1750656264836,0.32888476,101760.0,101750.0,0.35151476]
[1750656265046,0.3381036,101760.0,101750.0,0.35151476]
[1750656265456,0.33810355,101760.0,101750.0,0.35151476]
[1750656265787,0.33810355,101760.0,101750.0,0.06375]
[1750656266180,0.05033879,101760.0,101750.0,0.06375]
[1750656266410,0.33810355,101760.0,101750.0,0.06375]
[1750656266622,0.05033879,101760.0,101750.0,0.06375]
[1750656267864,0.33810313,101760.0,101750.0,0.06375]
[1750656268105,0.05033837,101760.0,101750.0,0.06375]
[1750656268282,0.33810313,101760.0,101750.0,0.06375]
[1750656268703,0.09031104,101760.0,101750.0,0.06375]
[1750656269687,0.09031104,101760.0,101750.0,0.35151476]
[1750656269889,0.09031093,101760.0,101750.0,0.35151476]
[1750656272910,0.09031093,101760.0,101750.0,0.06375]
[1750656273109,0.09031093,101760.0,101750.0,0.35151476]
[1750656274258,0.09031093,101760.0,101750.0,0.06375]
[1750656274513,0.09031093,101760.0,101750.0,0.35151476]
[1750656275233,0.09031093,101760.0,101750.0,0.06375]
[1750656275445,0.09031093,101760.0,101750.0,0.35151476]
[1750656276710,0.09031709,101760.0,101750.0,0.35151476]
[1750656279190,0.09031709,101760.0,101750.0,0.06375]
[1750656279391,0.09031709,101760.0,101750.0,0.35151476]
[1750656282468,0.08109267,101760.0,101750.0,0.35151476]
[1750656282690,0.09031886,101760.0,101750.0,0.35151476]
[1750656285623,0.09031991,101760.0,101750.0,0.06251]
[1750656285847,0.40636571,101760.0,101750.0,0.06251]
[1750656286334,0.42601892,101760.0,101750.0,0.06251]
[1750656287015,0.42601384,101760.0,101750.0,0.06251]
[1750656287484,0.43584069,101760.0,101750.0,0.06251]
[1750656287688,0.42601384,101760.0,101750.0,0.06251]
[1750656288464,1.07934486,101760.0,101750.0,0.00091]
[1750656288899,0.50381534,101760.0,101750.0,0.00091]
[1750656289111,1.10891286,101760.0,101750.0,0.00091]
[1750656289314,1.09908659,101760.0,101750.0,0.00091]
[1750656289737,0.81132183,101760.0,101750.0,0.00091]
[1750656290160,1.08926013,101760.0,101750.0,0.00091]
[1750656290551,1.07943338,101760.0,101750.0,0.00091]
[1750656290760,1.08143338,101760.0,101750.0,0.00091]
[1750656291174,1.08142845,101760.0,101750.0,0.00091]
[1750656291380,1.07942845,101760.0,101750.0,0.00091]
[1750656292245,1.08142845,101760.0,101750.0,0.00091]
[1750656292650,1.08142845,101760.0,101740.0,0.0629612]
[1750656292828,0.30741981,101750.0,101740.0,0.0629612]
[1750656293047,1.17905123,101750.0,101740.0,0.0004612]
[1750656293273,1.38575691,101750.0,101740.0,0.0004612]
[1750656293507,1.12755299,101750.0,101740.0,0.0004612]
[1750656293714,1.10396481,101750.0,101740.0,0.0004612]
[1750656294148,1.10396142,101750.0,101740.0,0.0004612]
[1750656294545,1.10396369,101750.0,101740.0,0.0004612]
[1750656295039,1.10396369,101750.0,101740.0,0.0014612]
[1750656295634,1.10496369,101750.0,101740.0,0.0004612]
[1750656296094,1.39272845,101750.0,101740.0,0.0004612]
[1750656296295,1.39268429,101750.0,101740.0,0.0004612]
[1750656297236,0.21625823,101730.0,101720.0,0.14034132]
[1750656297470,0.3166262,101730.0,101720.0,0.14080277]
[1750656297685,0.52729566,101730.0,101720.0,0.14080277]
[1750656297897,0.76330044,101730.0,101720.0,0.14080277]
[1750656298278,0.5667016,101730.0,101720.0,0.14080277]
[1750656298698,0.556869,101730.0,101720.0,0.14080277]
[1750656299473,0.556869,101730.0,101720.0,0.14203277]
[1750656299684,0.26910337,101730.0,101720.0,0.14203277]
[1750656299923,0.56669787,101730.0,101720.0,0.14203277]
[1750656300397,0.57652781,101730.0,101720.0,0.14203277]
[1750656300595,0.75346289,101730.0,101720.0,0.06166145]
[1750656301108,0.78228388,101730.0,101720.0,0.06166145]
[1750656301933,0.44459247,101730.0,101720.0,0.06166145]
[1750656302133,0.45442202,101730.0,101720.0,0.06166145]
[1750656302331,0.23879918,101730.0,101720.0,0.06166145]
[1750656302576,0.24799313,101730.0,101720.0,0.06166145]
[1750656302775,0.44459197,101730.0,101720.0,0.06166145]
[1750656302969,0.60375197,101730.0,101720.0,0.06166145]
[1750656303396,0.60374915,101730.0,101720.0,0.06166145]
[1750656303544,0.45515025,101730.0,101720.0,0.06166145]
[1750656303765,1.08291501,101730.0,101720.0,0.06166145]
[1750656304451,1.07308546,101730.0,101720.0,0.06166145]
[1750656304884,1.06325572,101730.0,101720.0,0.06166145]
[1750656305519,1.05406459,101730.0,101720.0,0.06166145]
[1750656305725,1.58933947,101730.0,101720.0,0.00046145]
[1750656305956,1.60772109,101730.0,101720.0,0.00046145]
[1750656306227,1.60772192,101730.0,101720.0,0.00046145]
[1750656306434,1.80534983,101730.0,101720.0,0.00046145]
[1750656306638,5.00575983,101730.0,101720.0,0.00046145]
[1750656306846,5.02928369,101730.0,101720.0,0.00046145]
[1750656307052,5.07928369,101730.0,101720.0,0.00046145]
[1750656307674,5.04619663,101730.0,101720.0,0.00046145]
[1750656307879,5.04819663,101730.0,101720.0,0.00046145]
[1750656308083,5.02467277,101730.0,101720.0,0.00046145]
[1750656308284,5.02453146,101730.0,101720.0,0.00046145]
[1750656308715,5.02553276,101730.0,101720.0,0.00046145]
[1750656308919,5.02853276,101730.0,101720.0,0.00046145]
[1750656309566,5.04393189,101730.0,101720.0,0.00046145]
[1750656311123,4.61658353,101730.0,101720.0,0.00046145]
[1750656311338,4.85490237,101730.0,101720.0,0.00046145]
[1750656311779,4.81318457,101730.0,101720.0,0.00046145]
[1750656311983,4.85494457,101730.0,101720.0,0.00046145]
[1750656312397,5.01430457,101730.0,101720.0,0.00046145]
[1750656312644,4.77977324,101730.0,101720.0,0.00046145]
[1750656312829,4.67530989,101730.0,101720.0,0.00046145]
[1750656314099,4.67531834,101730.0,101720.0,0.00046145]
[1750656314303,4.47419834,101730.0,101720.0,0.00046145]
[1750656314479,4.49769228,101730.0,101720.0,0.00046145]
[1750656314620,5.03881228,101730.0,101720.0,0.00046145]
[1750656315026,5.0688368,101730.0,101720.0,0.00046145]
[1750656316856,5.09842608,101730.0,101720.0,0.00046145]
[1750656318589,5.09642608,101730.0,101720.0,0.00046145]
[1750656319934,5.09642402,101730.0,101720.0,0.00046145]
[1750656321571,5.07805687,101730.0,101720.0,0.00046145]
[1750656321778,5.09643212,101730.0,101720.0,0.00046145]
[1750656322568,5.12591727,101730.0,101720.0,0.00046145]
[1750656322777,5.10754202,101730.0,101720.0,0.00046145]
[1750656323161,5.1279279,101730.0,101720.0,0.00046145]
[1750656324495,5.1259279,101730.0,101720.0,0.00046145]
[1750656325743,5.12593984,101730.0,101720.0,0.00046145]
[1750656326159,0.56098972,101720.0,101710.0,0.02116145]
[1750656326395,1.05911706,101720.0,101710.0,0.02129986]
[1750656326591,0.72280041,101720.0,101710.0,0.02129986]
[1750656326861,0.37741142,101720.0,101710.0,0.02253986]
[1750656327061,0.24836165,101720.0,101710.0,0.06148718]
[1750656327217,0.21030357,101720.0,101710.0,0.06148718]
[1750656327419,0.2211336,101720.0,101710.0,0.06148718]
[1750656327616,0.57096392,101720.0,101710.0,0.02253986]
[1750656327945,0.58079444,101720.0,101710.0,0.02253986]
[1750656328149,0.58179444,101720.0,101710.0,0.02253986]
[1750656328350,0.86948645,101720.0,101710.0,0.02253986]
[1750656328556,0.31836645,101720.0,101710.0,0.02253986]
[1750656328766,0.36914623,101720.0,101710.0,0.02253986]
[1750656328962,0.35931571,101720.0,101710.0,0.02253986]
[1750656329133,0.0716237,101720.0,101710.0,0.02253986]
[1750656329338,0.0716237,101720.0,101710.0,0.05323986]
[1750656329339,0.5696237,101720.0,101710.0,0.05323986]
[1750656329851,0.71911338,101720.0,101710.0,0.05323986]
[1750656330061,0.56962361,101720.0,101710.0,0.05323986]
[1750656330259,0.71911338,101720.0,101710.0,0.05323986]
[1750656330827,0.70928335,101720.0,101710.0,0.05323986]
[1750656331027,0.50820335,101720.0,101710.0,0.05323986]
[1750656331436,0.70936335,101720.0,101710.0,0.05323986]
[1750656331748,0.70016,101720.0,101710.0,0.05323986]
[1750656331990,0.001,101720.0,101710.0,0.05323986]
[1750656332214,0.38284,101720.0,101710.0,0.05323986]
[1750656332458,0.55195003,101720.0,101710.0,0.05323986]
[1750656333597,0.54212,101720.0,101710.0,0.05323986]
[1750656335472,0.56054898,101720.0,101710.0,0.05323986]
[1750656336251,0.54212,101720.0,101710.0,0.05323986]
[1750656337685,0.55195013,101720.0,101710.0,0.05323986]
[1750656338653,0.54212,101720.0,101710.0,0.05323986]
[1750656338854,0.55195013,101720.0,101710.0,0.05323986]
[1750656339102,0.55195003,101720.0,101710.0,0.05323986]
[1750656340130,0.56178016,101720.0,101710.0,0.05323986]
[1750656340543,0.57161048,101720.0,101710.0,0.05323986]
[1750656340767,0.86851588,101720.0,101710.0,0.05323986]
[1750656340905,0.87834659,101720.0,101710.0,0.05323986]
[1750656341704,0.88817749,101720.0,101710.0,0.05323986]
[1750656341846,1.07496552,101720.0,101710.0,0.05323986]
[1750656342042,1.0651352,101720.0,101710.0,0.05323986]
[1750656343713,1.08356368,101720.0,101710.0,0.05323986]
[1750656344737,1.07373316,101720.0,101710.0,0.05323986]
[1750656344946,1.07373489,101720.0,101710.0,0.05323986]
[1750656346112,0.73373489,101720.0,101710.0,0.05199986]
[1750656346311,0.73373489,101720.0,101710.0,0.05322986]
[1750656346729,0.73373489,101720.0,101710.0,0.05199986]
[1750656346950,0.72394418,101720.0,101710.0,0.05199986]
[1750656347186,0.72394418,101720.0,101710.0,0.02129986]
[1750656347789,0.72394418,101720.0,101710.0,0.05449986]
[1750656349240,0.72395621,101720.0,101710.0,0.05449986]
[1750656349580,0.71473783,101720.0,101710.0,0.05449986]
[1750656349817,0.72395621,101720.0,101710.0,0.05449986]
[1750656350022,0.72395621,101720.0,101710.0,0.05572986]
[1750656351300,0.72395785,101720.0,101710.0,0.05572986]
[1750656351507,0.54700062,101720.0,101710.0,0.05572986]
[1750656351711,0.52856222,101720.0,101710.0,0.05572986]
[1750656351930,0.72518038,101720.0,101710.0,0.05572986]
[1750656352130,0.74362424,101720.0,101710.0,0.05572986]
[1750656353724,0.74362761,101720.0,101710.0,0.05572986]
[1750656354155,0.38071333,101720.0,101710.0,0.05572986]
[1750656354519,0.18409517,101720.0,101710.0,0.05572986]
[1750656355324,0.53979333,101720.0,101710.0,0.05572986]
[1750656357892,0.53980075,101720.0,101710.0,0.05572986]
[1750656358696,0.52997043,101720.0,101710.0,0.05572986]
[1750656360293,1.01038201,101720.0,101710.0,0.05572986]
[1750656360496,1.00055111,101720.0,101710.0,0.05572986]
[1750656361119,0.99132141,101720.0,101710.0,0.05572986]
[1750656361322,0.99132141,101720.0,101710.0,0.05449986]
[1750656362282,0.97287808,101720.0,101710.0,0.05572986]
[1750656362685,1.31287808,101720.0,101710.0,0.02129986]
[1750656363772,1.3840517,101720.0,101710.0,0.00013841]
[1750656364181,1.4135392,101720.0,101710.0,0.00013841]
[1750656364383,1.12595492,101720.0,101710.0,0.00013841]
[1750656364576,1.09646742,101720.0,101710.0,0.00013841]
[1750656366916,1.11186712,101720.0,101710.0,0.00013841]
[1750656367764,1.07886712,101720.0,101710.0,0.03313841]
[1750656367974,1.07842712,101720.0,101710.0,0.06343841]
[1750656368398,1.06302742,101720.0,101710.0,0.06343841]
[1750656369677,1.06302742,101720.0,101710.0,0.00013841]
[1750656370104,1.06302742,101720.0,101710.0,0.03173841]
[1750656370531,1.09071676,101720.0,101710.0,0.03173841]
[1750656372513,1.09068289,101720.0,101710.0,0.03173841]
[1750656372714,1.10608225,101720.0,101710.0,0.03173841]
[1750656375165,1.1060656,101720.0,101710.0,0.03173841]
[1750656375367,1.1060656,101720.0,101710.0,0.06243841]
[1750656377741,1.1061056,101720.0,101710.0,0.06243841]
[1750656378174,1.10610596,101720.0,101710.0,0.06243841]
[1750656380690,1.10610596,101720.0,101710.0,0.06362841]
[1750656381127,1.10610945,101720.0,101710.0,0.06362841]
[1750656381801,0.90087941,101720.0,101710.0,0.06243841]
[1750656382010,0.3406279,101720.0,101710.0,0.06362841]
[1750656382214,0.54540958,101720.0,101710.0,0.06362841]
[1750656382421,0.52574825,101720.0,101710.0,0.06362841]
[1750656382626,0.88540909,101720.0,101710.0,0.06362841]
[1750656383477,0.8952397,101720.0,101710.0,0.06362841]
[1750656384081,0.89524008,101720.0,101710.0,0.06362841]
[1750656384489,0.69472008,101720.0,101710.0,0.06362841]
[1750656384700,1.09185882,101720.0,101710.0,0.06362841]
[1750656384909,1.0820285,101720.0,101710.0,0.06362841]
[1750656385949,0.87553915,101720.0,101710.0,0.06362841]
[1750656386375,0.55956422,101720.0,101710.0,0.06362841]
[1750656386573,0.54973409,101720.0,101710.0,0.06362841]
[1750656386787,0.85711018,101720.0,101710.0,0.06362841]
[1750656386994,0.85711028,101720.0,101710.0,0.06362841]
[1750656387201,0.85711018,101720.0,101710.0,0.06362841]
[1750656387410,0.8669407,101720.0,101710.0,0.06362841]
[1750656387619,0.85711018,101720.0,101710.0,0.06362841]
[1750656387832,0.8669406,101720.0,101710.0,0.06362841]
[1750656388044,0.85711018,101720.0,101710.0,0.06362841]
[1750656388698,0.86694079,101720.0,101710.0,0.06362841]
[1750656388912,0.87819919,101720.0,101710.0,0.06362841]
[1750656389143,0.8669407,101720.0,101710.0,0.06362841]
[1750656389389,0.85711018,101720.0,101710.0,0.06362841]
[1750656390011,0.85711005,101720.0,101710.0,0.06362841]
[1750656390170,0.86694057,101720.0,101710.0,0.06362841]
[1750656390746,0.86694047,101720.0,101710.0,0.06362841]
[1750656391144,0.87677108,101720.0,101710.0,0.06362841]
[1750656391350,0.86694047,101720.0,101710.0,0.06362841]
[1750656391555,0.87677099,101720.0,101710.0,0.06362841]
[1750656392211,0.86694047,101720.0,101710.0,0.06362841]
[1750656392898,0.86694092,101720.0,101710.0,0.06362841]
[1750656393362,0.87677144,101720.0,101710.0,0.06362841]
[1750656393915,0.86694092,101720.0,101710.0,0.06362841]
[1750656394122,0.87677153,101720.0,101710.0,0.06362841]
[1750656394350,0.86694092,101720.0,101710.0,0.06362841]